Workbook

Sheet CSSM sand
A1: CSSM Plane‒Strain Incremental Numerical Simulation for Granular Cohesionless Soil
B2: Initial State:
B3: σ'3 (kPa) | C3: 30.00
B4: Ø’cv,ps (°) | C4: 39.61
B5: n0 from Eqs. (4-13) or (4-14) | C5: =IF(C4>45,(8*SIN((C4)*PI()/180)-(4*PI()/3))/(8*SIN((C4)*PI()/180)),(8*SIN((90-C4)*PI()/180)-(4*PI()/3))/(8*SIN((90-C4)*PI()/180))) -> 32.04%
B6: Final State:
B7: (σ'1/σ'3)f,cs,ps Eq. (7-12) | C7: =INDEX(B27:B100000,COUNTA(B27:B100000)) -> 4.69
B8: (σ'1/σ'3)f,cv,ps Eq. (7-3) | C8: =(TAN((45+C4/2)*PI()/180))^2 -> 4.52
B9: Ø’cs,ps (°) | C9: 49.51
B10: Tan(Ø’cv,ps) | C10: =TAN(C4*PI()/180) -> 0.83
B11: Tan(Ø’cv,ps) from Eq. (4-9) | C11: =TAN(C9*PI()/180)*((SIN(60*PI()/180)-SIN(C9*PI()/180))/(COS(C9*PI()/180)-COS(60*PI()/180))) -> 0.83
B12: check equality | C12: =C10/C11 -> 1.00
B13: nc from Eqs. (4-11) or (4-12) | C13: =IF(C9>45,(8*SIN((C9)*PI()/180)-(4*PI()/3))/(8*SIN((C9)*PI()/180)),(8*SIN((90-C9)*PI()/180)-(4*PI()/3))/(8*SIN((90-C9)*PI()/180))) -> 31.15%
B14: Porosity:
B15: Max. Porosity | C15: 47.64%
B16: Min. Porosity | C16: 25.95%
B17: Computation:
B18: No. Rows or Steps, N | C18: 200.00
B19: Δα (°) Eq. (7-2) | C19: =(C9-C4)/(C18-1) -> 0.04973
B20: Δα (°) (45.0000) | C20: =IF(AND(C9>45,C4<45),(45-C4)/(C18/2),"NA") -> 0.05390
B21: No. Rows or Steps, N | C21: =IF(AND(C9>45,C4<45),ROUNDDOWN(((C9-C4)+C20)/C20,0),"NA") -> 184.00
B22: Precision Eq. (7-11) | C22: =IF(AND($C$9>45,$C$4<45),1-((C8-INDEX(B27:B100000,(C18/2)))/C8),1-(C8-MAX(B27:B10000))/C8) -> 99.22%
A24: step # i | B24: (σ'1/σ'3)i,ps | C24: σ'1 (kPa) | D24: αi (˚) | E24: α0,i (˚) | F24: A | G24: u (kPa) | H24: n | I24: e | J24: Dr | K24: K0 | L24: ν | M24: Ꜫ̇̇1ֺ | N24: Ꜫ1 | O24: Ꜫ̇̇3 | P24: Ꜫ3 | Q24: Ꜫ̇̇v | R24: Ꜫv | S24: Ꜫs
B25: Eq. (7-4) | C25: (σ'1/σ'3)*σ'3 | D25: Eq. (7-1) | E25: Eq. (4-9) | F25: Eq. (4-20) | G25: (σ'1-σ'3)*A | H25: Eq. (4-11) to (4-14) | J25: Eq. (4-23) or (4-26) | K25: Eq. (5-4) | L25: k0/(1+k0) Eq. (7-10) | M25: Eq. (7-7) or Eq. (7-8) | N25: CUSUM Eq. (7-6) | O25: Ꜫ̇̇3= -Ꜫ̇̇1ֺ*ν Eq. (7-9) | P25: CUSUM | Q25: -(Ꜫ̇̇1+Ꜫ̇̇3) Eq. (7-5) | R25: CUSUM | S25: (Ꜫ1-Ꜫ3)
A26: 1 | B26: 0.0000 | C26: 0.00 | D26: =IF(AND($C$9>45,$C$4<45),$C$4+(A26-1)*$C$20,$C$4+(A26-1)*$C$19) -> 39.6100 | E26: =ATAN(TAN(D26*PI()/180)*((SIN(60*PI()/180)-SIN(D26*PI()/180))/(COS(D26*PI()/180)-COS(60*PI()/180))))*180/PI() -> 34.9622 | F26: =-(1/3)-((TAN(D26*PI()/180)-TAN(E26*PI()/180))/(TAN(D26*PI()/180)*TAN(E26*PI()/180))) -> -0.56 | G26: 0.00 | H26: =IF(D26>45,(8*SIN((D26)*PI()/180)-(4*PI()/3))/(8*SIN((D26)*PI()/180)),(8*SIN((90-D26)*PI()/180)-(4*PI()/3))/(8*SIN((90-D26)*PI()/180))) -> 0.32036 | I26: =H26/(1-H26) -> 0.47136 | J26: =((($C$15/(1-$C$15))-(H26/(1-H26)))/(($C$15/(1-$C$15))-($C$16/(1-$C$16)))) -> 78.39% | K26: =(SQRT(3/4)-SIN(D26*PI()/180))/(2*COS(D26*PI()/180)-1) -> 0.42246 | L26: =K26/(1+K26) -> 0.29699 | M26: 0.00000 | N26: 0.00000 | O26: 0.00000 | P26: 0.00000 | Q26: 0.00000 | R26: 0.00000
A27: =A26+1 -> 2 | B27: =$C$8*(1+(Q27/N27)) -> 1.3409 | C27: =B27*$C$3 -> 40.23 | D27: =IF(AND($C$9>45,$C$4<45),$C$4+(A27-1)*$C$20,$C$4+(A27-1)*$C$19) -> 39.6639 | E27: =ATAN(TAN(D27*PI()/180)*((SIN(60*PI()/180)-SIN(D27*PI()/180))/(COS(D27*PI()/180)-COS(60*PI()/180))))*180/PI() -> 34.9880 | F27: =-(1/3)-((TAN(D27*PI()/180)-TAN(E27*PI()/180))/(TAN(D27*PI()/180)*TAN(E27*PI()/180))) -> -0.56 | G27: =(C27-$C$3)*F27 -> -5.69 | H27: =IF(D27>45,(8*SIN((D27)*PI()/180)-(4*PI()/3))/(8*SIN((D27)*PI()/180)),(8*SIN((90-D27)*PI()/180)-(4*PI()/3))/(8*SIN((90-D27)*PI()/180))) -> 0.31983 | I27: =H27/(1-H27) -> 0.47021 | J27: =((($C$15/(1-$C$15))-(H27/(1-H27)))/(($C$15/(1-$C$15))-($C$16/(1-$C$16)))) -> 78.59% | K27: =(SQRT(3/4)-SIN(D27*PI()/180))/(2*COS(D27*PI()/180)-1) -> 0.42206 | L27: =(K27/(1+K27)) -> 0.29679 | M27: =IF(D27>45,(COS((90-D26)*PI()/180)-COS((90-D27)*PI()/180))/(COS((90-D26)*PI()/180)*(1-L27)),(COS((D26)*PI()/180)-COS((D27)*PI()/180))/(COS((D26)*PI()/180)*(1-L27))) -> 0.00111 | N27: =N26+M27 -> 0.00111 | O27: =-M27*L27 -> -0.00033 | P27: =P26+O27 -> -0.00033 | Q27: =-(M27+O27) -> -0.00078 | R27: =R26+Q27 -> -0.00078 | S27: =(N27-P27) -> 0.00144
A28: =A27+1 -> 3 | B28: =$C$8*(1+(Q28/N28)) -> 2.9278 | C28: =B28*$C$3 -> 87.83 | D28: =IF(AND($C$9>45,$C$4<45),$C$4+(A28-1)*$C$20,$C$4+(A28-1)*$C$19) -> 39.7178 | E28: =ATAN(TAN(D28*PI()/180)*((SIN(60*PI()/180)-SIN(D28*PI()/180))/(COS(D28*PI()/180)-COS(60*PI()/180))))*180/PI() -> 35.0139 | F28: =-(1/3)-((TAN(D28*PI()/180)-TAN(E28*PI()/180))/(TAN(D28*PI()/180)*TAN(E28*PI()/180))) -> -0.56 | G28: =(C28-$C$3)*F28 -> -32.21 | H28: =IF(D28>45,(8*SIN((D28)*PI()/180)-(4*PI()/3))/(8*SIN((D28)*PI()/180)),(8*SIN((90-D28)*PI()/180)-(4*PI()/3))/(8*SIN((90-D28)*PI()/180))) -> 0.31930 | I28: =H28/(1-H28) -> 0.46907 | J28: =((($C$15/(1-$C$15))-(H28/(1-H28)))/(($C$15/(1-$C$15))-($C$16/(1-$C$16)))) -> 78.80% | K28: =(SQRT(3/4)-SIN(D28*PI()/180))/(2*COS(D28*PI()/180)-1) -> 0.42165 | L28: =(K28/(1+K28)) -> 0.29659 | M28: =IF(D28>45,(COS((90-D27)*PI()/180)-COS((90-D28)*PI()/180))/(COS((90-D27)*PI()/180)*(1-L28)),(COS((D27)*PI()/180)-COS((D28)*PI()/180))/(COS((D27)*PI()/180)*(1-L28))) -> 0.00111 | N28: =N27+M28 -> 0.00222 | O28: =-M28*L28 -> -0.00033 | P28: =P27+O28 -> -0.00066 | Q28: =-(M28+O28) -> -0.00078 | R28: =R27+Q28 -> -0.00156 | S28: =(N28-P28) -> 0.00288
A29: 4 | B29: 3.4567 | C29: 103.70 | D29: 39.7717 | E29: 35.0397 | F29: -0.56 | G29: -41.12 | H29: 0.31876 | I29: 0.46792 | J29: 79.01% | K29: 0.42125 | L29: 0.29639 | M29: 0.00111 | N29: 0.00333 | O29: -0.00033 | P29: -0.00099 | Q29: -0.00078 | R29: -0.00234 | S29: 0.00432
A30: 5 | B30: 3.7212 | C30: 111.64 | D30: 39.8256 | E30: 35.0655 | F30: -0.56 | G30: -45.62 | H30: 0.31823 | I30: 0.46677 | J30: 79.21% | K30: 0.42085 | L30: 0.29620 | M30: 0.00111 | N30: 0.00444 | O30: -0.00033 | P30: -0.00132 | Q30: -0.00078 | R30: -0.00312 | S30: 0.00576
A31: 6 | B31: 3.8799 | C31: 116.40 | D31: 39.8795 | E31: 35.0913 | F31: -0.56 | G31: -48.36 | H31: 0.31769 | I31: 0.46562 | J31: 79.42% | K31: 0.42045 | L31: 0.29600 | M31: 0.00111 | N31: 0.00556 | O31: -0.00033 | P31: -0.00165 | Q31: -0.00078 | R31: -0.00391 | S31: 0.00720
A32: 7 | B32: 3.9857 | C32: 119.57 | D32: 39.9334 | E32: 35.1171 | F32: -0.56 | G32: -50.22 | H32: 0.31716 | I32: 0.46446 | J32: 79.62% | K32: 0.42005 | L32: 0.29580 | M32: 0.00112 | N32: 0.00667 | O32: -0.00033 | P32: -0.00198 | Q32: -0.00079 | R32: -0.00470 | S32: 0.00865
A33: 8 | B33: 4.0613 | C33: 121.84 | D33: 39.9873 | E33: 35.1429 | F33: -0.56 | G33: -51.58 | H33: 0.31662 | I33: 0.46331 | J33: 79.83% | K33: 0.41964 | L33: 0.29560 | M33: 0.00112 | N33: 0.00779 | O33: -0.00033 | P33: -0.00231 | Q33: -0.00079 | R33: -0.00548 | S33: 0.01010
A34: 9 | B34: 4.1179 | C34: 123.54 | D34: 40.0412 | E34: 35.1686 | F34: -0.56 | G34: -52.62 | H34: 0.31608 | I34: 0.46215 | J34: 80.04% | K34: 0.41924 | L34: 0.29540 | M34: 0.00112 | N34: 0.00891 | O34: -0.00033 | P34: -0.00264 | Q34: -0.00079 | R34: -0.00627 | S34: 0.01155
A35: 10 | B35: 4.1620 | C35: 124.86 | D35: 40.0951 | E35: 35.1944 | F35: -0.56 | G35: -53.45 | H35: 0.31554 | I35: 0.46100 | J35: 80.24% | K35: 0.41884 | L35: 0.29520 | M35: 0.00112 | N35: 0.01003 | O35: -0.00033 | P35: -0.00297 | Q35: -0.00079 | R35: -0.00706 | S35: 0.01301
A36: 11 | B36: 4.1973 | C36: 125.92 | D36: 40.1490 | E36: 35.2201 | F36: -0.56 | G36: -54.14 | H36: 0.31499 | I36: 0.45984 | J36: 80.45% | K36: 0.41844 | L36: 0.29500 | M36: 0.00112 | N36: 0.01116 | O36: -0.00033 | P36: -0.00330 | Q36: -0.00079 | R36: -0.00786 | S36: 0.01446
A37: 12 | B37: 4.2261 | C37: 126.78 | D37: 40.2029 | E37: 35.2458 | F37: -0.57 | G37: -54.71 | H37: 0.31445 | I37: 0.45868 | J37: 80.66% | K37: 0.41804 | L37: 0.29480 | M37: 0.00113 | N37: 0.01228 | O37: -0.00033 | P37: -0.00363 | Q37: -0.00079 | R37: -0.00865 | S37: 0.01592
A38: 13 | B38: 4.2502 | C38: 127.50 | D38: 40.2568 | E38: 35.2715 | F38: -0.57 | G38: -55.21 | H38: 0.31390 | I38: 0.45752 | J38: 80.86% | K38: 0.41764 | L38: 0.29460 | M38: 0.00113 | N38: 0.01341 | O38: -0.00033 | P38: -0.00397 | Q38: -0.00080 | R38: -0.00945 | S38: 0.01738
A39: 14 | B39: 4.2705 | C39: 128.12 | D39: 40.3107 | E39: 35.2972 | F39: -0.57 | G39: -55.64 | H39: 0.31336 | I39: 0.45636 | J39: 81.07% | K39: 0.41724 | L39: 0.29441 | M39: 0.00113 | N39: 0.01454 | O39: -0.00033 | P39: -0.00430 | Q39: -0.00080 | R39: -0.01024 | S39: 0.01884
A40: 15 | B40: 4.2879 | C40: 128.64 | D40: 40.3646 | E40: 35.3229 | F40: -0.57 | G40: -56.03 | H40: 0.31281 | I40: 0.45520 | J40: 81.28% | K40: 0.41685 | L40: 0.29421 | M40: 0.00113 | N40: 0.01567 | O40: -0.00033 | P40: -0.00463 | Q40: -0.00080 | R40: -0.01104 | S40: 0.02030
A41: 16 | B41: 4.3031 | C41: 129.09 | D41: 40.4185 | E41: 35.3486 | F41: -0.57 | G41: -56.38 | H41: 0.31226 | I41: 0.45403 | J41: 81.49% | K41: 0.41645 | L41: 0.29401 | M41: 0.00113 | N41: 0.01681 | O41: -0.00033 | P41: -0.00496 | Q41: -0.00080 | R41: -0.01184 | S41: 0.02177
A42: 17 | B42: 4.3163 | C42: 129.49 | D42: 40.4724 | E42: 35.3742 | F42: -0.57 | G42: -56.69 | H42: 0.31171 | I42: 0.45287 | J42: 81.70% | K42: 0.41605 | L42: 0.29381 | M42: 0.00114 | N42: 0.01794 | O42: -0.00033 | P42: -0.00530 | Q42: -0.00080 | R42: -0.01264 | S42: 0.02324
A43: 18 | B43: 4.3279 | C43: 129.84 | D43: 40.5263 | E43: 35.3999 | F43: -0.57 | G43: -56.98 | H43: 0.31115 | I43: 0.45170 | J43: 81.90% | K43: 0.41565 | L43: 0.29361 | M43: 0.00114 | N43: 0.01908 | O43: -0.00033 | P43: -0.00563 | Q43: -0.00080 | R43: -0.01345 | S43: 0.02471
A44: 19 | B44: 4.3383 | C44: 130.15 | D44: 40.5802 | E44: 35.4255 | F44: -0.57 | G44: -57.25 | H44: 0.31060 | I44: 0.45053 | J44: 82.11% | K44: 0.41525 | L44: 0.29341 | M44: 0.00114 | N44: 0.02022 | O44: -0.00033 | P44: -0.00597 | Q44: -0.00080 | R44: -0.01425 | S44: 0.02618
A45: 20 | B45: 4.3476 | C45: 130.43 | D45: 40.6341 | E45: 35.4511 | F45: -0.57 | G45: -57.49 | H45: 0.31004 | I45: 0.44936 | J45: 82.32% | K45: 0.41486 | L45: 0.29321 | M45: 0.00114 | N45: 0.02136 | O45: -0.00033 | P45: -0.00630 | Q45: -0.00081 | R45: -0.01506 | S45: 0.02766
A46: 21 | B46: 4.3559 | C46: 130.68 | D46: 40.6880 | E46: 35.4768 | F46: -0.57 | G46: -57.73 | H46: 0.30948 | I46: 0.44819 | J46: 82.53% | K46: 0.41446 | L46: 0.29302 | M46: 0.00114 | N46: 0.02250 | O46: -0.00033 | P46: -0.00664 | Q46: -0.00081 | R46: -0.01587 | S46: 0.02914
A47: 22 | B47: 4.3635 | C47: 130.90 | D47: 40.7419 | E47: 35.5024 | F47: -0.57 | G47: -57.95 | H47: 0.30892 | I47: 0.44702 | J47: 82.74% | K47: 0.41406 | L47: 0.29282 | M47: 0.00114 | N47: 0.02365 | O47: -0.00034 | P47: -0.00697 | Q47: -0.00081 | R47: -0.01667 | S47: 0.03062
A48: 23 | B48: 4.3704 | C48: 131.11 | D48: 40.7958 | E48: 35.5280 | F48: -0.58 | G48: -58.15 | H48: 0.30836 | I48: 0.44585 | J48: 82.95% | K48: 0.41367 | L48: 0.29262 | M48: 0.00115 | N48: 0.02479 | O48: -0.00034 | P48: -0.00731 | Q48: -0.00081 | R48: -0.01749 | S48: 0.03210
A49: 24 | B49: 4.3766 | C49: 131.30 | D49: 40.8497 | E49: 35.5535 | F49: -0.58 | G49: -58.35 | H49: 0.30780 | I49: 0.44467 | J49: 83.16% | K49: 0.41327 | L49: 0.29242 | M49: 0.00115 | N49: 0.02594 | O49: -0.00034 | P49: -0.00764 | Q49: -0.00081 | R49: -0.01830 | S49: 0.03358
A50: 25 | B50: 4.3824 | C50: 131.47 | D50: 40.9036 | E50: 35.5791 | F50: -0.58 | G50: -58.54 | H50: 0.30724 | I50: 0.44350 | J50: 83.37% | K50: 0.41288 | L50: 0.29222 | M50: 0.00115 | N50: 0.02709 | O50: -0.00034 | P50: -0.00798 | Q50: -0.00081 | R50: -0.01911 | S50: 0.03507
A51: 26 | B51: 4.3877 | C51: 131.63 | D51: 40.9575 | E51: 35.6047 | F51: -0.58 | G51: -58.72 | H51: 0.30667 | I51: 0.44232 | J51: 83.58% | K51: 0.41248 | L51: 0.29203 | M51: 0.00115 | N51: 0.02824 | O51: -0.00034 | P51: -0.00831 | Q51: -0.00082 | R51: -0.01993 | S51: 0.03655
A52: 27 | B52: 4.3926 | C52: 131.78 | D52: 41.0114 | E52: 35.6302 | F52: -0.58 | G52: -58.89 | H52: 0.30610 | I52: 0.44114 | J52: 83.79% | K52: 0.41208 | L52: 0.29183 | M52: 0.00115 | N52: 0.02939 | O52: -0.00034 | P52: -0.00865 | Q52: -0.00082 | R52: -0.02074 | S52: 0.03805
A53: 28 | B53: 4.3971 | C53: 131.91 | D53: 41.0653 | E53: 35.6557 | F53: -0.58 | G53: -59.06 | H53: 0.30554 | I53: 0.43996 | J53: 84.00% | K53: 0.41169 | L53: 0.29163 | M53: 0.00116 | N53: 0.03055 | O53: -0.00034 | P53: -0.00899 | Q53: -0.00082 | R53: -0.02156 | S53: 0.03954
A54: 29 | B54: 4.4013 | C54: 132.04 | D54: 41.1192 | E54: 35.6813 | F54: -0.58 | G54: -59.22 | H54: 0.30497 | I54: 0.43878 | J54: 84.21% | K54: 0.41130 | L54: 0.29143 | M54: 0.00116 | N54: 0.03171 | O54: -0.00034 | P54: -0.00932 | Q54: -0.00082 | R54: -0.02238 | S54: 0.04103
A55: 30 | B55: 4.4052 | C55: 132.16 | D55: 41.1731 | E55: 35.7068 | F55: -0.58 | G55: -59.38 | H55: 0.30439 | I55: 0.43760 | J55: 84.43% | K55: 0.41090 | L55: 0.29123 | M55: 0.00116 | N55: 0.03287 | O55: -0.00034 | P55: -0.00966 | Q55: -0.00082 | R55: -0.02320 | S55: 0.04253
A56: 31 | B56: 4.4088 | C56: 132.26 | D56: 41.2270 | E56: 35.7323 | F56: -0.58 | G56: -59.53 | H56: 0.30382 | I56: 0.43641 | J56: 84.64% | K56: 0.41051 | L56: 0.29104 | M56: 0.00116 | N56: 0.03403 | O56: -0.00034 | P56: -0.01000 | Q56: -0.00082 | R56: -0.02403 | S56: 0.04403
A57: 32 | B57: 4.4122 | C57: 132.37 | D57: 41.2809 | E57: 35.7578 | F57: -0.58 | G57: -59.68 | H57: 0.30325 | I57: 0.43523 | J57: 84.85% | K57: 0.41011 | L57: 0.29084 | M57: 0.00116 | N57: 0.03519 | O57: -0.00034 | P57: -0.01034 | Q57: -0.00082 | R57: -0.02485 | S57: 0.04553
A58: 33 | B58: 4.4154 | C58: 132.46 | D58: 41.3348 | E58: 35.7833 | F58: -0.58 | G58: -59.82 | H58: 0.30267 | I58: 0.43404 | J58: 85.06% | K58: 0.40972 | L58: 0.29064 | M58: 0.00116 | N58: 0.03636 | O58: -0.00034 | P58: -0.01068 | Q58: -0.00083 | R58: -0.02568 | S58: 0.04703
A59: 34 | B59: 4.4184 | C59: 132.55 | D59: 41.3887 | E59: 35.8087 | F59: -0.58 | G59: -59.96 | H59: 0.30209 | I59: 0.43286 | J59: 85.27% | K59: 0.40933 | L59: 0.29044 | M59: 0.00117 | N59: 0.03752 | O59: -0.00034 | P59: -0.01102 | Q59: -0.00083 | R59: -0.02651 | S59: 0.04854
A60: 35 | B60: 4.4213 | C60: 132.64 | D60: 41.4426 | E60: 35.8342 | F60: -0.59 | G60: -60.10 | H60: 0.30151 | I60: 0.43167 | J60: 85.49% | K60: 0.40893 | L60: 0.29024 | M60: 0.00117 | N60: 0.03869 | O60: -0.00034 | P60: -0.01136 | Q60: -0.00083 | R60: -0.02734 | S60: 0.05005
A61: 36 | B61: 4.4239 | C61: 132.72 | D61: 41.4965 | E61: 35.8597 | F61: -0.59 | G61: -60.23 | H61: 0.30093 | I61: 0.43048 | J61: 85.70% | K61: 0.40854 | L61: 0.29005 | M61: 0.00117 | N61: 0.03986 | O61: -0.00034 | P61: -0.01169 | Q61: -0.00083 | R61: -0.02817 | S61: 0.05156
A62: 37 | B62: 4.4265 | C62: 132.79 | D62: 41.5504 | E62: 35.8851 | F62: -0.59 | G62: -60.36 | H62: 0.30035 | I62: 0.42929 | J62: 85.91% | K62: 0.40815 | L62: 0.28985 | M62: 0.00117 | N62: 0.04103 | O62: -0.00034 | P62: -0.01203 | Q62: -0.00083 | R62: -0.02900 | S62: 0.05307
A63: 38 | B63: 4.4288 | C63: 132.87 | D63: 41.6043 | E63: 35.9105 | F63: -0.59 | G63: -60.49 | H63: 0.29977 | I63: 0.42809 | J63: 86.12% | K63: 0.40776 | L63: 0.28965 | M63: 0.00117 | N63: 0.04221 | O63: -0.00034 | P63: -0.01237 | Q63: -0.00083 | R63: -0.02983 | S63: 0.05458
A64: 39 | B64: 4.4311 | C64: 132.93 | D64: 41.6582 | E64: 35.9360 | F64: -0.59 | G64: -60.62 | H64: 0.29918 | I64: 0.42690 | J64: 86.34% | K64: 0.40737 | L64: 0.28945 | M64: 0.00118 | N64: 0.04339 | O64: -0.00034 | P64: -0.01272 | Q64: -0.00084 | R64: -0.03067 | S64: 0.05610
A65: 40 | B65: 4.4332 | C65: 133.00 | D65: 41.7121 | E65: 35.9614 | F65: -0.59 | G65: -60.74 | H65: 0.29859 | I65: 0.42571 | J65: 86.55% | K65: 0.40698 | L65: 0.28926 | M65: 0.00118 | N65: 0.04456 | O65: -0.00034 | P65: -0.01306 | Q65: -0.00084 | R65: -0.03151 | S65: 0.05762
A66: 41 | B66: 4.4353 | C66: 133.06 | D66: 41.7660 | E66: 35.9868 | F66: -0.59 | G66: -60.87 | H66: 0.29800 | I66: 0.42451 | J66: 86.76% | K66: 0.40659 | L66: 0.28906 | M66: 0.00118 | N66: 0.04574 | O66: -0.00034 | P66: -0.01340 | Q66: -0.00084 | R66: -0.03235 | S66: 0.05914
A67: 42 | B67: 4.4372 | C67: 133.12 | D67: 41.8199 | E67: 36.0122 | F67: -0.59 | G67: -60.99 | H67: 0.29741 | I67: 0.42331 | J67: 86.98% | K67: 0.40619 | L67: 0.28886 | M67: 0.00118 | N67: 0.04693 | O67: -0.00034 | P67: -0.01374 | Q67: -0.00084 | R67: -0.03319 | S67: 0.06066
A68: 43 | B68: 4.4390 | C68: 133.17 | D68: 41.8738 | E68: 36.0376 | F68: -0.59 | G68: -61.11 | H68: 0.29682 | I68: 0.42211 | J68: 87.19% | K68: 0.40580 | L68: 0.28866 | M68: 0.00118 | N68: 0.04811 | O68: -0.00034 | P68: -0.01408 | Q68: -0.00084 | R68: -0.03403 | S68: 0.06219
A69: 44 | B69: 4.4408 | C69: 133.22 | D69: 41.9277 | E69: 36.0630 | F69: -0.59 | G69: -61.22 | H69: 0.29623 | I69: 0.42091 | J69: 87.41% | K69: 0.40541 | L69: 0.28847 | M69: 0.00119 | N69: 0.04929 | O69: -0.00034 | P69: -0.01442 | Q69: -0.00084 | R69: -0.03487 | S69: 0.06372
A70: 45 | B70: 4.4425 | C70: 133.27 | D70: 41.9816 | E70: 36.0884 | F70: -0.59 | G70: -61.34 | H70: 0.29563 | I70: 0.41971 | J70: 87.62% | K70: 0.40502 | L70: 0.28827 | M70: 0.00119 | N70: 0.05048 | O70: -0.00034 | P70: -0.01476 | Q70: -0.00085 | R70: -0.03572 | S70: 0.06525
A71: 46 | B71: 4.4441 | C71: 133.32 | D71: 42.0355 | E71: 36.1137 | F71: -0.59 | G71: -61.45 | H71: 0.29503 | I71: 0.41851 | J71: 87.84% | K71: 0.40464 | L71: 0.28807 | M71: 0.00119 | N71: 0.05167 | O71: -0.00034 | P71: -0.01511 | Q71: -0.00085 | R71: -0.03656 | S71: 0.06678
A72: 47 | B72: 4.4456 | C72: 133.37 | D72: 42.0894 | E72: 36.1391 | F72: -0.60 | G72: -61.56 | H72: 0.29444 | I72: 0.41731 | J72: 88.05% | K72: 0.40425 | L72: 0.28787 | M72: 0.00119 | N72: 0.05286 | O72: -0.00034 | P72: -0.01545 | Q72: -0.00085 | R72: -0.03741 | S72: 0.06831
A73: 48 | B73: 4.4471 | C73: 133.41 | D73: 42.1433 | E73: 36.1644 | F73: -0.60 | G73: -61.67 | H73: 0.29384 | I73: 0.41610 | J73: 88.27% | K73: 0.40386 | L73: 0.28768 | M73: 0.00119 | N73: 0.05406 | O73: -0.00034 | P73: -0.01579 | Q73: -0.00085 | R73: -0.03826 | S73: 0.06985
A74: 49 | B74: 4.4485 | C74: 133.45 | D74: 42.1972 | E74: 36.1898 | F74: -0.60 | G74: -61.78 | H74: 0.29323 | I74: 0.41490 | J74: 88.48% | K74: 0.40347 | L74: 0.28748 | M74: 0.00120 | N74: 0.05525 | O74: -0.00034 | P74: -0.01614 | Q74: -0.00085 | R74: -0.03912 | S74: 0.07139
A75: 50 | B75: 4.4498 | C75: 133.49 | D75: 42.2511 | E75: 36.2151 | F75: -0.60 | G75: -61.89 | H75: 0.29263 | I75: 0.41369 | J75: 88.70% | K75: 0.40308 | L75: 0.28728 | M75: 0.00120 | N75: 0.05645 | O75: -0.00034 | P75: -0.01648 | Q75: -0.00085 | R75: -0.03997 | S75: 0.07293
A76: 51 | B76: 4.4511 | C76: 133.53 | D76: 42.3050 | E76: 36.2404 | F76: -0.60 | G76: -62.00 | H76: 0.29202 | I76: 0.41248 | J76: 88.92% | K76: 0.40269 | L76: 0.28709 | M76: 0.00120 | N76: 0.05765 | O76: -0.00034 | P76: -0.01683 | Q76: -0.00085 | R76: -0.04082 | S76: 0.07448
A77: 52 | B77: 4.4524 | C77: 133.57 | D77: 42.3589 | E77: 36.2658 | F77: -0.60 | G77: -62.11 | H77: 0.29142 | I77: 0.41127 | J77: 89.13% | K77: 0.40231 | L77: 0.28689 | M77: 0.00120 | N77: 0.05885 | O77: -0.00034 | P77: -0.01717 | Q77: -0.00086 | R77: -0.04168 | S77: 0.07602
A78: 53 | B78: 4.4536 | C78: 133.61 | D78: 42.4128 | E78: 36.2911 | F78: -0.60 | G78: -62.21 | H78: 0.29081 | I78: 0.41006 | J78: 89.35% | K78: 0.40192 | L78: 0.28669 | M78: 0.00120 | N78: 0.06005 | O78: -0.00034 | P78: -0.01752 | Q78: -0.00086 | R78: -0.04254 | S78: 0.07757
A79: 54 | B79: 4.4547 | C79: 133.64 | D79: 42.4667 | E79: 36.3164 | F79: -0.60 | G79: -62.32 | H79: 0.29020 | I79: 0.40885 | J79: 89.57% | K79: 0.40153 | L79: 0.28649 | M79: 0.00121 | N79: 0.06126 | O79: -0.00035 | P79: -0.01786 | Q79: -0.00086 | R79: -0.04340 | S79: 0.07912
A80: 55 | B80: 4.4558 | C80: 133.67 | D80: 42.5206 | E80: 36.3417 | F80: -0.60 | G80: -62.42 | H80: 0.28959 | I80: 0.40763 | J80: 89.78% | K80: 0.40114 | L80: 0.28630 | M80: 0.00121 | N80: 0.06247 | O80: -0.00035 | P80: -0.01821 | Q80: -0.00086 | R80: -0.04426 | S80: 0.08067
A81: 56 | B81: 4.4569 | C81: 133.71 | D81: 42.5745 | E81: 36.3670 | F81: -0.60 | G81: -62.52 | H81: 0.28897 | I81: 0.40642 | J81: 90.00% | K81: 0.40076 | L81: 0.28610 | M81: 0.00121 | N81: 0.06367 | O81: -0.00035 | P81: -0.01855 | Q81: -0.00086 | R81: -0.04512 | S81: 0.08223
A82: 57 | B82: 4.4579 | C82: 133.74 | D82: 42.6284 | E82: 36.3923 | F82: -0.60 | G82: -62.62 | H82: 0.28836 | I82: 0.40520 | J82: 90.22% | K82: 0.40037 | L82: 0.28590 | M82: 0.00121 | N82: 0.06489 | O82: -0.00035 | P82: -0.01890 | Q82: -0.00086 | R82: -0.04599 | S82: 0.08378
A83: 58 | B83: 4.4589 | C83: 133.77 | D83: 42.6823 | E83: 36.4175 | F83: -0.60 | G83: -62.72 | H83: 0.28774 | I83: 0.40398 | J83: 90.43% | K83: 0.39999 | L83: 0.28571 | M83: 0.00121 | N83: 0.06610 | O83: -0.00035 | P83: -0.01924 | Q83: -0.00087 | R83: -0.04685 | S83: 0.08534
A84: 59 | B84: 4.4599 | C84: 133.80 | D84: 42.7362 | E84: 36.4428 | F84: -0.61 | G84: -62.82 | H84: 0.28712 | I84: 0.40276 | J84: 90.65% | K84: 0.39960 | L84: 0.28551 | M84: 0.00121 | N84: 0.06731 | O84: -0.00035 | P84: -0.01959 | Q84: -0.00087 | R84: -0.04772 | S84: 0.08691
A85: 60 | B85: 4.4608 | C85: 133.82 | D85: 42.7901 | E85: 36.4681 | F85: -0.61 | G85: -62.92 | H85: 0.28650 | I85: 0.40155 | J85: 90.87% | K85: 0.39922 | L85: 0.28531 | M85: 0.00122 | N85: 0.06853 | O85: -0.00035 | P85: -0.01994 | Q85: -0.00087 | R85: -0.04859 | S85: 0.08847
A86: 61 | B86: 4.4617 | C86: 133.85 | D86: 42.8440 | E86: 36.4933 | F86: -0.61 | G86: -63.02 | H86: 0.28588 | I86: 0.40032 | J86: 91.09% | K86: 0.39883 | L86: 0.28512 | M86: 0.00122 | N86: 0.06975 | O86: -0.00035 | P86: -0.02029 | Q86: -0.00087 | R86: -0.04946 | S86: 0.09004
A87: 62 | B87: 4.4626 | C87: 133.88 | D87: 42.8979 | E87: 36.5186 | F87: -0.61 | G87: -63.12 | H87: 0.28526 | I87: 0.39910 | J87: 91.31% | K87: 0.39845 | L87: 0.28492 | M87: 0.00122 | N87: 0.07097 | O87: -0.00035 | P87: -0.02063 | Q87: -0.00087 | R87: -0.05034 | S87: 0.09160
A88: 63 | B88: 4.4634 | C88: 133.90 | D88: 42.9518 | E88: 36.5438 | F88: -0.61 | G88: -63.22 | H88: 0.28463 | I88: 0.39788 | J88: 91.53% | K88: 0.39806 | L88: 0.28472 | M88: 0.00122 | N88: 0.07219 | O88: -0.00035 | P88: -0.02098 | Q88: -0.00087 | R88: -0.05121 | S88: 0.09317
A89: 64 | B89: 4.4642 | C89: 133.93 | D89: 43.0057 | E89: 36.5691 | F89: -0.61 | G89: -63.31 | H89: 0.28400 | I89: 0.39665 | J89: 91.74% | K89: 0.39768 | L89: 0.28453 | M89: 0.00122 | N89: 0.07342 | O89: -0.00035 | P89: -0.02133 | Q89: -0.00088 | R89: -0.05209 | S89: 0.09475
A90: 65 | B90: 4.4650 | C90: 133.95 | D90: 43.0596 | E90: 36.5943 | F90: -0.61 | G90: -63.41 | H90: 0.28337 | I90: 0.39543 | J90: 91.96% | K90: 0.39729 | L90: 0.28433 | M90: 0.00123 | N90: 0.07464 | O90: -0.00035 | P90: -0.02168 | Q90: -0.00088 | R90: -0.05296 | S90: 0.09632
A91: 66 | B91: 4.4658 | C91: 133.97 | D91: 43.1135 | E91: 36.6195 | F91: -0.61 | G91: -63.50 | H91: 0.28274 | I91: 0.39420 | J91: 92.18% | K91: 0.39691 | L91: 0.28413 | M91: 0.00123 | N91: 0.07587 | O91: -0.00035 | P91: -0.02203 | Q91: -0.00088 | R91: -0.05384 | S91: 0.09790
A92: =A91+1 -> 67 | B92: =$C$8*(1+(Q92/N92)) -> 4.4665 | C92: =B92*$C$3 -> 133.99 | D92: =IF(AND($C$9>45,$C$4<45),$C$4+(A92-1)*$C$20,$C$4+(A92-1)*$C$19) -> 43.1674 | E92: =ATAN(TAN(D92*PI()/180)*((SIN(60*PI()/180)-SIN(D92*PI()/180))/(COS(D92*PI()/180)-COS(60*PI()/180))))*180/PI() -> 36.6448 | F92: =-(1/3)-((TAN(D92*PI()/180)-TAN(E92*PI()/180))/(TAN(D92*PI()/180)*TAN(E92*PI()/180))) -> -0.61 | G92: =(C92-$C$3)*F92 -> -63.60 | H92: =IF(D92>45,(8*SIN((D92)*PI()/180)-(4*PI()/3))/(8*SIN((D92)*PI()/180)),(8*SIN((90-D92)*PI()/180)-(4*PI()/3))/(8*SIN((90-D92)*PI()/180))) -> 0.28211 | I92: =H92/(1-H92) -> 0.39297 | J92: =((($C$15/(1-$C$15))-(H92/(1-H92)))/(($C$15/(1-$C$15))-($C$16/(1-$C$16)))) -> 92.40% | K92: =(SQRT(3/4)-SIN(D92*PI()/180))/(2*COS(D92*PI()/180)-1) -> 0.39653 | L92: =(K92/(1+K92)) -> 0.28394 | M92: =IF(D92>45,(COS((90-D91)*PI()/180)-COS((90-D92)*PI()/180))/(COS((90-D91)*PI()/180)*(1-L92)),(COS((D91)*PI()/180)-COS((D92)*PI()/180))/(COS((D91)*PI()/180)*(1-L92))) -> 0.00123 | N92: =N91+M92 -> 0.07710 | O92: =-M92*L92 -> -0.00035 | P92: =P91+O92 -> -0.02238 | Q92: =-(M92+O92) -> -0.00088 | R92: =R91+Q92 -> -0.05473 | S92: =(N92-P92) -> 0.09948
A93: 68 | B93: 4.4672 | C93: 134.02 | D93: 43.2213 | E93: 36.6700 | F93: -0.61 | G93: -63.69 | H93: 0.28148 | I93: 0.39174 | J93: 92.62% | K93: 0.39614 | L93: 0.28374 | M93: 0.00123 | N93: 0.07834 | O93: -0.00035 | P93: -0.02273 | Q93: -0.00088 | R93: -0.05561 | S93: 0.10106
A94: 69 | B94: 4.4679 | C94: 134.04 | D94: 43.2752 | E94: 36.6952 | F94: -0.61 | G94: -63.78 | H94: 0.28084 | I94: 0.39051 | J94: 92.84% | K94: 0.39576 | L94: 0.28355 | M94: 0.00123 | N94: 0.07957 | O94: -0.00035 | P94: -0.02308 | Q94: -0.00088 | R94: -0.05649 | S94: 0.10265
A95: 70 | B95: 4.4686 | C95: 134.06 | D95: 43.3291 | E95: 36.7204 | F95: -0.61 | G95: -63.88 | H95: 0.28020 | I95: 0.38928 | J95: 93.06% | K95: 0.39538 | L95: 0.28335 | M95: 0.00124 | N95: 0.08081 | O95: -0.00035 | P95: -0.02343 | Q95: -0.00089 | R95: -0.05738 | S95: 0.10423
A96: 71 | B96: 4.4692 | C96: 134.08 | D96: 43.3830 | E96: 36.7456 | F96: -0.61 | G96: -63.97 | H96: 0.27956 | I96: 0.38804 | J96: 93.28% | K96: 0.39500 | L96: 0.28315 | M96: 0.00124 | N96: 0.08205 | O96: -0.00035 | P96: -0.02378 | Q96: -0.00089 | R96: -0.05827 | S96: 0.10582
A97: 72 | B97: 4.4699 | C97: 134.10 | D97: 43.4369 | E97: 36.7708 | F97: -0.62 | G97: -64.06 | H97: 0.27892 | I97: 0.38681 | J97: 93.50% | K97: 0.39461 | L97: 0.28296 | M97: 0.00124 | N97: 0.08329 | O97: -0.00035 | P97: -0.02413 | Q97: -0.00089 | R97: -0.05916 | S97: 0.10742
A98: 73 | B98: 4.4705 | C98: 134.11 | D98: 43.4908 | E98: 36.7960 | F98: -0.62 | G98: -64.15 | H98: 0.27828 | I98: 0.38557 | J98: 93.73% | K98: 0.39423 | L98: 0.28276 | M98: 0.00124 | N98: 0.08453 | O98: -0.00035 | P98: -0.02448 | Q98: -0.00089 | R98: -0.06005 | S98: 0.10901
A99: 74 | B99: 4.4711 | C99: 134.13 | D99: 43.5447 | E99: 36.8212 | F99: -0.62 | G99: -64.24 | H99: 0.27763 | I99: 0.38434 | J99: 93.95% | K99: 0.39385 | L99: 0.28256 | M99: 0.00124 | N99: 0.08577 | O99: -0.00035 | P99: -0.02483 | Q99: -0.00089 | R99: -0.06094 | S99: 0.11061
A100: 75 | B100: 4.4717 | C100: 134.15 | D100: 43.5986 | E100: 36.8464 | F100: -0.62 | G100: -64.33 | H100: 0.27699 | I100: 0.38310 | J100: 94.17% | K100: 0.39347 | L100: 0.28237 | M100: 0.00125 | N100: 0.08702 | O100: -0.00035 | P100: -0.02518 | Q100: -0.00089 | R100: -0.06183 | S100: 0.11220
A101: 76 | B101: 4.4723 | C101: 134.17 | D101: 43.6525 | E101: 36.8715 | F101: -0.62 | G101: -64.42 | H101: 0.27634 | I101: 0.38186 | J101: 94.39% | K101: 0.39309 | L101: 0.28217 | M101: 0.00125 | N101: 0.08827 | O101: -0.00035 | P101: -0.02554 | Q101: -0.00090 | R101: -0.06273 | S101: 0.11380
A102: 77 | B102: 4.4728 | C102: 134.18 | D102: 43.7064 | E102: 36.8967 | F102: -0.62 | G102: -64.51 | H102: 0.27569 | I102: 0.38062 | J102: 94.61% | K102: 0.39271 | L102: 0.28198 | M102: 0.00125 | N102: 0.08952 | O102: -0.00035 | P102: -0.02589 | Q102: -0.00090 | R102: -0.06363 | S102: 0.11541
A103: 78 | B103: 4.4734 | C103: 134.20 | D103: 43.7603 | E103: 36.9219 | F103: -0.62 | G103: -64.60 | H103: 0.27503 | I103: 0.37938 | J103: 94.83% | K103: 0.39233 | L103: 0.28178 | M103: 0.00125 | N103: 0.09077 | O103: -0.00035 | P103: -0.02624 | Q103: -0.00090 | R103: -0.06453 | S103: 0.11701
A104: 79 | B104: 4.4739 | C104: 134.22 | D104: 43.8142 | E104: 36.9471 | F104: -0.62 | G104: -64.68 | H104: 0.27438 | I104: 0.37813 | J104: 95.06% | K104: 0.39195 | L104: 0.28158 | M104: 0.00125 | N104: 0.09203 | O104: -0.00035 | P104: -0.02660 | Q104: -0.00090 | R104: -0.06543 | S104: 0.11862
A105: 80 | B105: 4.4744 | C105: 134.23 | D105: 43.8681 | E105: 36.9722 | F105: -0.62 | G105: -64.77 | H105: 0.27372 | I105: 0.37689 | J105: 95.28% | K105: 0.39157 | L105: 0.28139 | M105: 0.00126 | N105: 0.09328 | O105: -0.00035 | P105: -0.02695 | Q105: -0.00090 | R105: -0.06633 | S105: 0.12023
A106: 81 | B106: 4.4749 | C106: 134.25 | D106: 43.9220 | E106: 36.9974 | F106: -0.62 | G106: -64.86 | H106: 0.27307 | I106: 0.37564 | J106: 95.50% | K106: 0.39119 | L106: 0.28119 | M106: 0.00126 | N106: 0.09454 | O106: -0.00035 | P106: -0.02730 | Q106: -0.00090 | R106: -0.06724 | S106: 0.12184
A107: 82 | B107: 4.4754 | C107: 134.26 | D107: 43.9759 | E107: 37.0225 | F107: -0.62 | G107: -64.94 | H107: 0.27241 | I107: 0.37440 | J107: 95.72% | K107: 0.39081 | L107: 0.28100 | M107: 0.00126 | N107: 0.09580 | O107: -0.00035 | P107: -0.02766 | Q107: -0.00091 | R107: -0.06814 | S107: 0.12346
A108: 83 | B108: 4.4759 | C108: 134.28 | D108: 44.0298 | E108: 37.0477 | F108: -0.62 | G108: -65.03 | H108: 0.27175 | I108: 0.37315 | J108: 95.95% | K108: 0.39043 | L108: 0.28080 | M108: 0.00126 | N108: 0.09706 | O108: -0.00035 | P108: -0.02801 | Q108: -0.00091 | R108: -0.06905 | S108: 0.12508
A109: 84 | B109: 4.4763 | C109: 134.29 | D109: 44.0837 | E109: 37.0728 | F109: -0.62 | G109: -65.12 | H109: 0.27108 | I109: 0.37190 | J109: 96.17% | K109: 0.39006 | L109: 0.28060 | M109: 0.00126 | N109: 0.09833 | O109: -0.00035 | P109: -0.02837 | Q109: -0.00091 | R109: -0.06996 | S109: 0.12670
A110: 85 | B110: 4.4768 | C110: 134.30 | D110: 44.1376 | E110: 37.0980 | F110: -0.63 | G110: -65.20 | H110: 0.27042 | I110: 0.37065 | J110: 96.39% | K110: 0.38968 | L110: 0.28041 | M110: 0.00127 | N110: 0.09960 | O110: -0.00036 | P110: -0.02872 | Q110: -0.00091 | R110: -0.07087 | S110: 0.12832
A111: 86 | B111: 4.4772 | C111: 134.32 | D111: 44.1915 | E111: 37.1231 | F111: -0.63 | G111: -65.28 | H111: 0.26975 | I111: 0.36940 | J111: 96.62% | K111: 0.38930 | L111: 0.28021 | M111: 0.00127 | N111: 0.10086 | O111: -0.00036 | P111: -0.02908 | Q111: -0.00091 | R111: -0.07179 | S111: 0.12994
A112: 87 | B112: 4.4777 | C112: 134.33 | D112: 44.2454 | E112: 37.1483 | F112: -0.63 | G112: -65.37 | H112: 0.26908 | I112: 0.36814 | J112: 96.84% | K112: 0.38892 | L112: 0.28002 | M112: 0.00127 | N112: 0.10214 | O112: -0.00036 | P112: -0.02943 | Q112: -0.00091 | R112: -0.07270 | S112: 0.13157
A113: 88 | B113: 4.4781 | C113: 134.34 | D113: 44.2993 | E113: 37.1734 | F113: -0.63 | G113: -65.45 | H113: 0.26841 | I113: 0.36689 | J113: 97.07% | K113: 0.38854 | L113: 0.27982 | M113: 0.00127 | N113: 0.10341 | O113: -0.00036 | P113: -0.02979 | Q113: -0.00092 | R113: -0.07362 | S113: 0.13320
A114: 89 | B114: 4.4785 | C114: 134.35 | D114: 44.3532 | E114: 37.1985 | F114: -0.63 | G114: -65.54 | H114: 0.26774 | I114: 0.36563 | J114: 97.29% | K114: 0.38817 | L114: 0.27963 | M114: 0.00127 | N114: 0.10468 | O114: -0.00036 | P114: -0.03015 | Q114: -0.00092 | R114: -0.07454 | S114: 0.13483
A115: 90 | B115: 4.4789 | C115: 134.37 | D115: 44.4071 | E115: 37.2237 | F115: -0.63 | G115: -65.62 | H115: 0.26706 | I115: 0.36438 | J115: 97.51% | K115: 0.38779 | L115: 0.27943 | M115: 0.00128 | N115: 0.10596 | O115: -0.00036 | P115: -0.03050 | Q115: -0.00092 | R115: -0.07546 | S115: 0.13646
A116: 91 | B116: 4.4793 | C116: 134.38 | D116: 44.4610 | E116: 37.2488 | F116: -0.63 | G116: -65.70 | H116: 0.26639 | I116: 0.36312 | J116: 97.74% | K116: 0.38741 | L116: 0.27923 | M116: 0.00128 | N116: 0.10724 | O116: -0.00036 | P116: -0.03086 | Q116: -0.00092 | R116: -0.07638 | S116: 0.13810
A117: 92 | B117: 4.4797 | C117: 134.39 | D117: 44.5149 | E117: 37.2739 | F117: -0.63 | G117: -65.78 | H117: 0.26571 | I117: 0.36186 | J117: 97.96% | K117: 0.38704 | L117: 0.27904 | M117: 0.00128 | N117: 0.10852 | O117: -0.00036 | P117: -0.03122 | Q117: -0.00092 | R117: -0.07730 | S117: 0.13974
A118: 93 | B118: 4.4801 | C118: 134.40 | D118: 44.5688 | E118: 37.2991 | F118: -0.63 | G118: -65.87 | H118: 0.26503 | I118: 0.36060 | J118: 98.19% | K118: 0.38666 | L118: 0.27884 | M118: 0.00128 | N118: 0.10980 | O118: -0.00036 | P118: -0.03158 | Q118: -0.00093 | R118: -0.07823 | S118: 0.14138
A119: 94 | B119: 4.4804 | C119: 134.41 | D119: 44.6227 | E119: 37.3242 | F119: -0.63 | G119: -65.95 | H119: 0.26435 | I119: 0.35934 | J119: 98.42% | K119: 0.38629 | L119: 0.27865 | M119: 0.00129 | N119: 0.11109 | O119: -0.00036 | P119: -0.03193 | Q119: -0.00093 | R119: -0.07915 | S119: 0.14302
A120: 95 | B120: 4.4808 | C120: 134.42 | D120: 44.6766 | E120: 37.3493 | F120: -0.63 | G120: -66.03 | H120: 0.26366 | I120: 0.35808 | J120: 98.64% | K120: 0.38591 | L120: 0.27845 | M120: 0.00129 | N120: 0.11238 | O120: -0.00036 | P120: -0.03229 | Q120: -0.00093 | R120: -0.08008 | S120: 0.14467
A121: 96 | B121: 4.4811 | C121: 134.43 | D121: 44.7305 | E121: 37.3744 | F121: -0.63 | G121: -66.11 | H121: 0.26298 | I121: 0.35681 | J121: 98.87% | K121: 0.38554 | L121: 0.27826 | M121: 0.00129 | N121: 0.11367 | O121: -0.00036 | P121: -0.03265 | Q121: -0.00093 | R121: -0.08101 | S121: 0.14632
A122: 97 | B122: 4.4815 | C122: 134.44 | D122: 44.7844 | E122: 37.3995 | F122: -0.63 | G122: -66.19 | H122: 0.26229 | I122: 0.35555 | J122: 99.09% | K122: 0.38516 | L122: 0.27806 | M122: 0.00129 | N122: 0.11496 | O122: -0.00036 | P122: -0.03301 | Q122: -0.00093 | R122: -0.08195 | S122: 0.14797
A123: 98 | B123: 4.4818 | C123: 134.45 | D123: 44.8383 | E123: 37.4247 | F123: -0.63 | G123: -66.27 | H123: 0.26160 | I123: 0.35428 | J123: 99.32% | K123: 0.38479 | L123: 0.27787 | M123: 0.00129 | N123: 0.11625 | O123: -0.00036 | P123: -0.03337 | Q123: -0.00093 | R123: -0.08288 | S123: 0.14962
A124: 99 | B124: 4.4822 | C124: 134.46 | D124: 44.8922 | E124: 37.4498 | F124: -0.64 | G124: -66.35 | H124: 0.26091 | I124: 0.35301 | J124: 99.55% | K124: 0.38441 | L124: 0.27767 | M124: 0.00130 | N124: 0.11755 | O124: -0.00036 | P124: -0.03373 | Q124: -0.00094 | R124: -0.08382 | S124: 0.15128
A125: 100 | B125: 4.4825 | C125: 134.47 | D125: 44.9461 | E125: 37.4749 | F125: -0.64 | G125: -66.43 | H125: 0.26022 | I125: 0.35174 | J125: 99.77% | K125: 0.38404 | L125: 0.27748 | M125: 0.00130 | N125: 0.11884 | O125: -0.00036 | P125: -0.03409 | Q125: -0.00094 | R125: -0.08475 | S125: 0.15293
A126: 101 | B126: 4.4828 | C126: 134.48 | D126: 45.0000 | E126: 37.5000 | F126: -0.64 | G126: -66.51 | H126: 0.25952 | I126: 0.35047 | J126: 100.00% | K126: 0.38366 | L126: 0.27728 | M126: 0.00130 | N126: 0.12014 | O126: -0.00036 | P126: -0.03445 | Q126: -0.00094 | R126: -0.08569 | S126: 0.15459
A127: 102 | B127: 4.5539 | C127: 136.62 | D127: 45.0539 | E127: 37.5251 | F127: -0.64 | G127: -67.94 | H127: 0.26022 | I127: 0.35174 | J127: 99.77% | K127: 0.38329 | L127: 0.27709 | M127: -0.00130 | N127: 0.11884 | O127: 0.00036 | P127: -0.03409 | Q127: 0.00094 | R127: -0.08475 | S127: 0.15293
A128: 103 | B128: 4.5542 | C128: 136.63 | D128: 45.1078 | E128: 37.5502 | F128: -0.64 | G128: -68.02 | H128: 0.26091 | I128: 0.35301 | J128: 99.55% | K128: 0.38292 | L128: 0.27689 | M128: -0.00130 | N128: 0.11755 | O128: 0.00036 | P128: -0.03373 | Q128: 0.00094 | R128: -0.08382 | S128: 0.15128
A129: 104 | B129: 4.5545 | C129: 136.64 | D129: 45.1617 | E129: 37.5753 | F129: -0.64 | G129: -68.10 | H129: 0.26160 | I129: 0.35428 | J129: 99.32% | K129: 0.38254 | L129: 0.27670 | M129: -0.00130 | N129: 0.11625 | O129: 0.00036 | P129: -0.03337 | Q129: 0.00094 | R129: -0.08288 | S129: 0.14962
A130: 105 | B130: 4.5549 | C130: 136.65 | D130: 45.2156 | E130: 37.6004 | F130: -0.64 | G130: -68.18 | H130: 0.26229 | I130: 0.35555 | J130: 99.09% | K130: 0.38217 | L130: 0.27650 | M130: -0.00129 | N130: 0.11496 | O130: 0.00036 | P130: -0.03301 | Q130: 0.00093 | R130: -0.08194 | S130: 0.14797
A131: 106 | B131: 4.5552 | C131: 136.66 | D131: 45.2695 | E131: 37.6256 | F131: -0.64 | G131: -68.26 | H131: 0.26298 | I131: 0.35681 | J131: 98.87% | K131: 0.38180 | L131: 0.27631 | M131: -0.00129 | N131: 0.11367 | O131: 0.00036 | P131: -0.03266 | Q131: 0.00093 | R131: -0.08101 | S131: 0.14633
A132: 107 | B132: 4.5556 | C132: 136.67 | D132: 45.3234 | E132: 37.6507 | F132: -0.64 | G132: -68.34 | H132: 0.26366 | I132: 0.35808 | J132: 98.64% | K132: 0.38143 | L132: 0.27611 | M132: -0.00129 | N132: 0.11238 | O132: 0.00036 | P132: -0.03230 | Q132: 0.00093 | R132: -0.08008 | S132: 0.14468
A133: 108 | B133: 4.5559 | C133: 136.68 | D133: 45.3773 | E133: 37.6758 | F133: -0.64 | G133: -68.42 | H133: 0.26435 | I133: 0.35934 | J133: 98.42% | K133: 0.38105 | L133: 0.27592 | M133: -0.00128 | N133: 0.11110 | O133: 0.00035 | P133: -0.03195 | Q133: 0.00093 | R133: -0.07915 | S133: 0.14305
A134: 109 | B134: 4.5563 | C134: 136.69 | D134: 45.4312 | E134: 37.7009 | F134: -0.64 | G134: -68.50 | H134: 0.26503 | I134: 0.36060 | J134: 98.19% | K134: 0.38068 | L134: 0.27572 | M134: -0.00128 | N134: 0.10982 | O134: 0.00035 | P134: -0.03160 | Q134: 0.00093 | R134: -0.07822 | S134: 0.14141
A135: 110 | B135: 4.5567 | C135: 136.70 | D135: 45.4851 | E135: 37.7260 | F135: -0.64 | G135: -68.58 | H135: 0.26571 | I135: 0.36186 | J135: 97.96% | K135: 0.38031 | L135: 0.27553 | M135: -0.00128 | N135: 0.10854 | O135: 0.00035 | P135: -0.03124 | Q135: 0.00093 | R135: -0.07729 | S135: 0.13978
A136: 111 | B136: 4.5571 | C136: 136.71 | D136: 45.5390 | E136: 37.7511 | F136: -0.64 | G136: -68.66 | H136: 0.26639 | I136: 0.36312 | J136: 97.74% | K136: 0.37994 | L136: 0.27533 | M136: -0.00128 | N136: 0.10726 | O136: 0.00035 | P136: -0.03089 | Q136: 0.00092 | R136: -0.07637 | S136: 0.13815
A137: 112 | B137: 4.5575 | C137: 136.72 | D137: 45.5929 | E137: 37.7762 | F137: -0.64 | G137: -68.74 | H137: 0.26706 | I137: 0.36438 | J137: 97.51% | K137: 0.37957 | L137: 0.27514 | M137: -0.00127 | N137: 0.10599 | O137: 0.00035 | P137: -0.03054 | Q137: 0.00092 | R137: -0.07545 | S137: 0.13653
A138: 113 | B138: 4.5579 | C138: 136.74 | D138: 45.6468 | E138: 37.8013 | F138: -0.64 | G138: -68.82 | H138: 0.26774 | I138: 0.36563 | J138: 97.29% | K138: 0.37920 | L138: 0.27494 | M138: -0.00127 | N138: 0.10472 | O138: 0.00035 | P138: -0.03019 | Q138: 0.00092 | R138: -0.07453 | S138: 0.13491
A139: 114 | B139: 4.5583 | C139: 136.75 | D139: 45.7007 | E139: 37.8264 | F139: -0.65 | G139: -68.90 | H139: 0.26841 | I139: 0.36689 | J139: 97.07% | K139: 0.37883 | L139: 0.27475 | M139: -0.00127 | N139: 0.10345 | O139: 0.00035 | P139: -0.02984 | Q139: 0.00092 | R139: -0.07361 | S139: 0.13330
A140: 115 | B140: 4.5587 | C140: 136.76 | D140: 45.7546 | E140: 37.8516 | F140: -0.65 | G140: -68.98 | H140: 0.26908 | I140: 0.36814 | J140: 96.84% | K140: 0.37846 | L140: 0.27455 | M140: -0.00126 | N140: 0.10219 | O140: 0.00035 | P140: -0.02950 | Q140: 0.00092 | R140: -0.07269 | S140: 0.13168
A141: 116 | B141: 4.5591 | C141: 136.77 | D141: 45.8085 | E141: 37.8767 | F141: -0.65 | G141: -69.06 | H141: 0.26975 | I141: 0.36940 | J141: 96.62% | K141: 0.37809 | L141: 0.27436 | M141: -0.00126 | N141: 0.10092 | O141: 0.00035 | P141: -0.02915 | Q141: 0.00092 | R141: -0.07177 | S141: 0.13007
A142: 117 | B142: 4.5596 | C142: 136.79 | D142: 45.8624 | E142: 37.9018 | F142: -0.65 | G142: -69.14 | H142: 0.27042 | I142: 0.37065 | J142: 96.39% | K142: 0.37772 | L142: 0.27416 | M142: -0.00126 | N142: 0.09966 | O142: 0.00035 | P142: -0.02881 | Q142: 0.00091 | R142: -0.07086 | S142: 0.12847
A143: 118 | B143: 4.5600 | C143: 136.80 | D143: 45.9163 | E143: 37.9269 | F143: -0.65 | G143: -69.22 | H143: 0.27108 | I143: 0.37190 | J143: 96.17% | K143: 0.37735 | L143: 0.27397 | M143: -0.00126 | N143: 0.09841 | O143: 0.00034 | P143: -0.02846 | Q143: 0.00091 | R143: -0.06995 | S143: 0.12687
A144: 119 | B144: 4.5605 | C144: 136.81 | D144: 45.9702 | E144: 37.9520 | F144: -0.65 | G144: -69.30 | H144: 0.27175 | I144: 0.37315 | J144: 95.95% | K144: 0.37698 | L144: 0.27377 | M144: -0.00125 | N144: 0.09715 | O144: 0.00034 | P144: -0.02812 | Q144: 0.00091 | R144: -0.06904 | S144: 0.12527
A145: 120 | B145: 4.5610 | C145: 136.83 | D145: 46.0241 | E145: 37.9771 | F145: -0.65 | G145: -69.38 | H145: 0.27241 | I145: 0.37440 | J145: 95.72% | K145: 0.37661 | L145: 0.27358 | M145: -0.00125 | N145: 0.09590 | O145: 0.00034 | P145: -0.02778 | Q145: 0.00091 | R145: -0.06813 | S145: 0.12368
A146: 121 | B146: 4.5614 | C146: 136.84 | D146: 46.0780 | E146: 38.0023 | F146: -0.65 | G146: -69.46 | H146: 0.27307 | I146: 0.37564 | J146: 95.50% | K146: 0.37624 | L146: 0.27338 | M146: -0.00125 | N146: 0.09465 | O146: 0.00034 | P146: -0.02743 | Q146: 0.00091 | R146: -0.06722 | S146: 0.12209
A147: 122 | B147: 4.5619 | C147: 136.86 | D147: 46.1319 | E147: 38.0274 | F147: -0.65 | G147: -69.54 | H147: 0.27372 | I147: 0.37689 | J147: 95.28% | K147: 0.37588 | L147: 0.27319 | M147: -0.00125 | N147: 0.09341 | O147: 0.00034 | P147: -0.02709 | Q147: 0.00091 | R147: -0.06631 | S147: 0.12050
A148: 123 | B148: 4.5624 | C148: 136.87 | D148: 46.1858 | E148: 38.0525 | F148: -0.65 | G148: -69.62 | H148: 0.27438 | I148: 0.37813 | J148: 95.06% | K148: 0.37551 | L148: 0.27300 | M148: -0.00124 | N148: 0.09217 | O148: 0.00034 | P148: -0.02675 | Q148: 0.00090 | R148: -0.06541 | S148: 0.11892
A149: 124 | B149: 4.5630 | C149: 136.89 | D149: 46.2397 | E149: 38.0776 | F149: -0.65 | G149: -69.70 | H149: 0.27503 | I149: 0.37938 | J149: 94.83% | K149: 0.37514 | L149: 0.27280 | M149: -0.00124 | N149: 0.09092 | O149: 0.00034 | P149: -0.02642 | Q149: 0.00090 | R149: -0.06451 | S149: 0.11734
A150: 125 | B150: 4.5635 | C150: 136.90 | D150: 46.2936 | E150: 38.1028 | F150: -0.65 | G150: -69.78 | H150: 0.27569 | I150: 0.38062 | J150: 94.61% | K150: 0.37477 | L150: 0.27261 | M150: -0.00124 | N150: 0.08969 | O150: 0.00034 | P150: -0.02608 | Q150: 0.00090 | R150: -0.06361 | S150: 0.11577
A151: 126 | B151: 4.5640 | C151: 136.92 | D151: 46.3475 | E151: 38.1279 | F151: -0.65 | G151: -69.86 | H151: 0.27634 | I151: 0.38186 | J151: 94.39% | K151: 0.37441 | L151: 0.27241 | M151: -0.00124 | N151: 0.08845 | O151: 0.00034 | P151: -0.02574 | Q151: 0.00090 | R151: -0.06271 | S151: 0.11419
A152: 127 | B152: 4.5646 | C152: 136.94 | D152: 46.4014 | E152: 38.1530 | F152: -0.65 | G152: -69.94 | H152: 0.27699 | I152: 0.38310 | J152: 94.17% | K152: 0.37404 | L152: 0.27222 | M152: -0.00123 | N152: 0.08722 | O152: 0.00034 | P152: -0.02541 | Q152: 0.00090 | R152: -0.06181 | S152: 0.11263
A153: 128 | B153: 4.5652 | C153: 136.96 | D153: 46.4553 | E153: 38.1782 | F153: -0.65 | G153: -70.02 | H153: 0.27763 | I153: 0.38434 | J153: 93.95% | K153: 0.37367 | L153: 0.27202 | M153: -0.00123 | N153: 0.08599 | O153: 0.00033 | P153: -0.02507 | Q153: 0.00090 | R153: -0.06092 | S153: 0.11106
A154: 129 | B154: 4.5658 | C154: 136.97 | D154: 46.5092 | E154: 38.2033 | F154: -0.66 | G154: -70.10 | H154: 0.27828 | I154: 0.38557 | J154: 93.73% | K154: 0.37331 | L154: 0.27183 | M154: -0.00123 | N154: 0.08476 | O154: 0.00033 | P154: -0.02474 | Q154: 0.00089 | R154: -0.06002 | S154: 0.10950
A155: 130 | B155: 4.5664 | C155: 136.99 | D155: 46.5631 | E155: 38.2285 | F155: -0.66 | G155: -70.18 | H155: 0.27892 | I155: 0.38681 | J155: 93.50% | K155: 0.37294 | L155: 0.27164 | M155: -0.00122 | N155: 0.08354 | O155: 0.00033 | P155: -0.02441 | Q155: 0.00089 | R155: -0.05913 | S155: 0.10794
A156: =A155+1 -> 131 | B156: =$C$8*(1+(Q156/N156)) -> 4.5670 | C156: =B156*$C$3 -> 137.01 | D156: =IF(AND($C$9>45,$C$4<45),$C$4+(A156-1)*$C$20,$C$4+(A156-1)*$C$19) -> 46.6170 | E156: =ATAN(TAN(D156*PI()/180)*((SIN(60*PI()/180)-SIN(D156*PI()/180))/(COS(D156*PI()/180)-COS(60*PI()/180))))*180/PI() -> 38.2536 | F156: =-(1/3)-((TAN(D156*PI()/180)-TAN(E156*PI()/180))/(TAN(D156*PI()/180)*TAN(E156*PI()/180))) -> -0.66 | G156: =(C156-$C$3)*F156 -> -70.26 | H156: =IF(D156>45,(8*SIN((D156)*PI()/180)-(4*PI()/3))/(8*SIN((D156)*PI()/180)),(8*SIN((90-D156)*PI()/180)-(4*PI()/3))/(8*SIN((90-D156)*PI()/180))) -> 0.27956 | I156: =H156/(1-H156) -> 0.38804 | J156: =((($C$15/(1-$C$15))-(H156/(1-H156)))/(($C$15/(1-$C$15))-($C$16/(1-$C$16)))) -> 93.28% | K156: =(SQRT(3/4)-SIN(D156*PI()/180))/(2*COS(D156*PI()/180)-1) -> 0.37257 | L156: =(K156/(1+K156)) -> 0.27144 | M156: =IF(D156>45,(COS((90-D155)*PI()/180)-COS((90-D156)*PI()/180))/(COS((90-D155)*PI()/180)*(1-L156)),(COS((D155)*PI()/180)-COS((D156)*PI()/180))/(COS((D155)*PI()/180)*(1-L156))) -> -0.00122 | N156: =N155+M156 -> 0.08232 | O156: =-M156*L156 -> 0.00033 | P156: =P155+O156 -> -0.02407 | Q156: =-(M156+O156) -> 0.00089 | R156: =R155+Q156 -> -0.05824 | S156: =(N156-P156) -> 0.10639
A157: 132 | B157: 4.5676 | C157: 137.03 | D157: 46.6709 | E157: 38.2788 | F157: -0.66 | G157: -70.34 | H157: 0.28020 | I157: 0.38928 | J157: 93.06% | K157: 0.37221 | L157: 0.27125 | M157: -0.00122 | N157: 0.08110 | O157: 0.00033 | P157: -0.02374 | Q157: 0.00089 | R157: -0.05735 | S157: 0.10484
A158: 133 | B158: 4.5683 | C158: 137.05 | D158: 46.7248 | E158: 38.3039 | F158: -0.66 | G158: -70.42 | H158: 0.28084 | I158: 0.39051 | J158: 92.84% | K158: 0.37184 | L158: 0.27105 | M158: -0.00122 | N158: 0.07988 | O158: 0.00033 | P158: -0.02341 | Q158: 0.00089 | R158: -0.05647 | S158: 0.10329
A159: 134 | B159: 4.5690 | C159: 137.07 | D159: 46.7787 | E159: 38.3291 | F159: -0.66 | G159: -70.50 | H159: 0.28148 | I159: 0.39174 | J159: 92.62% | K159: 0.37148 | L159: 0.27086 | M159: -0.00121 | N159: 0.07866 | O159: 0.00033 | P159: -0.02308 | Q159: 0.00089 | R159: -0.05558 | S159: 0.10175
A160: 135 | B160: 4.5697 | C160: 137.09 | D160: 46.8326 | E160: 38.3542 | F160: -0.66 | G160: -70.58 | H160: 0.28211 | I160: 0.39297 | J160: 92.40% | K160: 0.37111 | L160: 0.27067 | M160: -0.00121 | N160: 0.07745 | O160: 0.00033 | P160: -0.02276 | Q160: 0.00088 | R160: -0.05470 | S160: 0.10021
A161: 136 | B161: 4.5704 | C161: 137.11 | D161: 46.8865 | E161: 38.3794 | F161: -0.66 | G161: -70.66 | H161: 0.28274 | I161: 0.39420 | J161: 92.18% | K161: 0.37075 | L161: 0.27047 | M161: -0.00121 | N161: 0.07624 | O161: 0.00033 | P161: -0.02243 | Q161: 0.00088 | R161: -0.05381 | S161: 0.09867
A162: 137 | B162: 4.5711 | C162: 137.13 | D162: 46.9404 | E162: 38.4046 | F162: -0.66 | G162: -70.75 | H162: 0.28337 | I162: 0.39543 | J162: 91.96% | K162: 0.37038 | L162: 0.27028 | M162: -0.00121 | N162: 0.07504 | O162: 0.00033 | P162: -0.02210 | Q162: 0.00088 | R162: -0.05293 | S162: 0.09714
A163: 138 | B163: 4.5719 | C163: 137.16 | D163: 46.9943 | E163: 38.4297 | F163: -0.66 | G163: -70.83 | H163: 0.28400 | I163: 0.39665 | J163: 91.74% | K163: 0.37002 | L163: 0.27008 | M163: -0.00120 | N163: 0.07383 | O163: 0.00033 | P163: -0.02178 | Q163: 0.00088 | R163: -0.05206 | S163: 0.09561
A164: 139 | B164: 4.5727 | C164: 137.18 | D164: 47.0482 | E164: 38.4549 | F164: -0.66 | G164: -70.91 | H164: 0.28463 | I164: 0.39788 | J164: 91.53% | K164: 0.36966 | L164: 0.26989 | M164: -0.00120 | N164: 0.07263 | O164: 0.00032 | P164: -0.02145 | Q164: 0.00088 | R164: -0.05118 | S164: 0.09409
A165: 140 | B165: 4.5735 | C165: 137.20 | D165: 47.1021 | E165: 38.4801 | F165: -0.66 | G165: -70.99 | H165: 0.28526 | I165: 0.39910 | J165: 91.31% | K165: 0.36929 | L165: 0.26970 | M165: -0.00120 | N165: 0.07143 | O165: 0.00032 | P165: -0.02113 | Q165: 0.00088 | R165: -0.05030 | S165: 0.09257
A166: 141 | B166: 4.5743 | C166: 137.23 | D166: 47.1560 | E166: 38.5053 | F166: -0.66 | G166: -71.08 | H166: 0.28588 | I166: 0.40032 | J166: 91.09% | K166: 0.36893 | L166: 0.26950 | M166: -0.00120 | N166: 0.07024 | O166: 0.00032 | P166: -0.02081 | Q166: 0.00087 | R166: -0.04943 | S166: 0.09105
A167: 142 | B167: 4.5752 | C167: 137.26 | D167: 47.2099 | E167: 38.5305 | F167: -0.66 | G167: -71.16 | H167: 0.28650 | I167: 0.40155 | J167: 90.87% | K167: 0.36857 | L167: 0.26931 | M167: -0.00119 | N167: 0.06904 | O167: 0.00032 | P167: -0.02049 | Q167: 0.00087 | R167: -0.04856 | S167: 0.08953
A168: 143 | B168: 4.5761 | C168: 137.28 | D168: 47.2638 | E168: 38.5557 | F168: -0.66 | G168: -71.24 | H168: 0.28712 | I168: 0.40276 | J168: 90.65% | K168: 0.36820 | L168: 0.26911 | M168: -0.00119 | N168: 0.06785 | O168: 0.00032 | P168: -0.02017 | Q168: 0.00087 | R168: -0.04769 | S168: 0.08802
A169: 144 | B169: 4.5770 | C169: 137.31 | D169: 47.3177 | E169: 38.5808 | F169: -0.66 | G169: -71.33 | H169: 0.28774 | I169: 0.40398 | J169: 90.43% | K169: 0.36784 | L169: 0.26892 | M169: -0.00119 | N169: 0.06667 | O169: 0.00032 | P169: -0.01985 | Q169: 0.00087 | R169: -0.04682 | S169: 0.08651
A170: 145 | B170: 4.5780 | C170: 137.34 | D170: 47.3716 | E170: 38.6061 | F170: -0.67 | G170: -71.41 | H170: 0.28836 | I170: 0.40520 | J170: 90.22% | K170: 0.36748 | L170: 0.26873 | M170: -0.00119 | N170: 0.06548 | O170: 0.00032 | P170: -0.01953 | Q170: 0.00087 | R170: -0.04595 | S170: 0.08501
A171: 146 | B171: 4.5789 | C171: 137.37 | D171: 47.4255 | E171: 38.6313 | F171: -0.67 | G171: -71.49 | H171: 0.28897 | I171: 0.40642 | J171: 90.00% | K171: 0.36712 | L171: 0.26853 | M171: -0.00118 | N171: 0.06430 | O171: 0.00032 | P171: -0.01921 | Q171: 0.00087 | R171: -0.04509 | S171: 0.08351
A172: 147 | B172: 4.5800 | C172: 137.40 | D172: 47.4794 | E172: 38.6565 | F172: -0.67 | G172: -71.58 | H172: 0.28959 | I172: 0.40763 | J172: 89.78% | K172: 0.36675 | L172: 0.26834 | M172: -0.00118 | N172: 0.06312 | O172: 0.00032 | P172: -0.01889 | Q172: 0.00086 | R172: -0.04422 | S172: 0.08201
A173: 148 | B173: 4.5810 | C173: 137.43 | D173: 47.5333 | E173: 38.6817 | F173: -0.67 | G173: -71.67 | H173: 0.29020 | I173: 0.40885 | J173: 89.57% | K173: 0.36639 | L173: 0.26815 | M173: -0.00118 | N173: 0.06194 | O173: 0.00032 | P173: -0.01858 | Q173: 0.00086 | R173: -0.04336 | S173: 0.08052
A174: 149 | B174: 4.5821 | C174: 137.46 | D174: 47.5872 | E174: 38.7069 | F174: -0.67 | G174: -71.75 | H174: 0.29081 | I174: 0.41006 | J174: 89.35% | K174: 0.36603 | L174: 0.26795 | M174: -0.00118 | N174: 0.06076 | O174: 0.00031 | P174: -0.01826 | Q174: 0.00086 | R174: -0.04250 | S174: 0.07903
A175: 150 | B175: 4.5833 | C175: 137.50 | D175: 47.6411 | E175: 38.7322 | F175: -0.67 | G175: -71.84 | H175: 0.29142 | I175: 0.41127 | J175: 89.13% | K175: 0.36567 | L175: 0.26776 | M175: -0.00117 | N175: 0.05959 | O175: 0.00031 | P175: -0.01795 | Q175: 0.00086 | R175: -0.04164 | S175: 0.07754
A176: 151 | B176: 4.5844 | C176: 137.53 | D176: 47.6950 | E176: 38.7574 | F176: -0.67 | G176: -71.93 | H176: 0.29202 | I176: 0.41248 | J176: 88.92% | K176: 0.36531 | L176: 0.26756 | M176: -0.00117 | N176: 0.05842 | O176: 0.00031 | P176: -0.01764 | Q176: 0.00086 | R176: -0.04078 | S176: 0.07605
A177: 152 | B177: 4.5857 | C177: 137.57 | D177: 47.7489 | E177: 38.7826 | F177: -0.67 | G177: -72.02 | H177: 0.29263 | I177: 0.41369 | J177: 88.70% | K177: 0.36495 | L177: 0.26737 | M177: -0.00117 | N177: 0.05725 | O177: 0.00031 | P177: -0.01732 | Q177: 0.00086 | R177: -0.03993 | S177: 0.07457
A178: 153 | B178: 4.5869 | C178: 137.61 | D178: 47.8028 | E178: 38.8079 | F178: -0.67 | G178: -72.11 | H178: 0.29323 | I178: 0.41490 | J178: 88.48% | K178: 0.36459 | L178: 0.26718 | M178: -0.00117 | N178: 0.05609 | O178: 0.00031 | P178: -0.01701 | Q178: 0.00085 | R178: -0.03907 | S178: 0.07310
A179: 154 | B179: 4.5883 | C179: 137.65 | D179: 47.8567 | E179: 38.8331 | F179: -0.67 | G179: -72.20 | H179: 0.29384 | I179: 0.41610 | J179: 88.27% | K179: 0.36423 | L179: 0.26698 | M179: -0.00116 | N179: 0.05492 | O179: 0.00031 | P179: -0.01670 | Q179: 0.00085 | R179: -0.03822 | S179: 0.07162
A180: 155 | B180: 4.5896 | C180: 137.69 | D180: 47.9106 | E180: 38.8584 | F180: -0.67 | G180: -72.29 | H180: 0.29444 | I180: 0.41731 | J180: 88.05% | K180: 0.36387 | L180: 0.26679 | M180: -0.00116 | N180: 0.05376 | O180: 0.00031 | P180: -0.01639 | Q180: 0.00085 | R180: -0.03737 | S180: 0.07015
A181: 156 | B181: 4.5911 | C181: 137.73 | D181: 47.9645 | E181: 38.8837 | F181: -0.67 | G181: -72.38 | H181: 0.29503 | I181: 0.41851 | J181: 87.84% | K181: 0.36351 | L181: 0.26660 | M181: -0.00116 | N181: 0.05260 | O181: 0.00031 | P181: -0.01608 | Q181: 0.00085 | R181: -0.03652 | S181: 0.06869
A182: 157 | B182: 4.5926 | C182: 137.78 | D182: 48.0184 | E182: 38.9089 | F182: -0.67 | G182: -72.47 | H182: 0.29563 | I182: 0.41971 | J182: 87.62% | K182: 0.36315 | L182: 0.26640 | M182: -0.00116 | N182: 0.05145 | O182: 0.00031 | P182: -0.01578 | Q182: 0.00085 | R182: -0.03567 | S182: 0.06722
A183: 158 | B183: 4.5941 | C183: 137.82 | D183: 48.0723 | E183: 38.9342 | F183: -0.67 | G183: -72.57 | H183: 0.29623 | I183: 0.42091 | J183: 87.41% | K183: 0.36279 | L183: 0.26621 | M183: -0.00115 | N183: 0.05030 | O183: 0.00031 | P183: -0.01547 | Q183: 0.00085 | R183: -0.03483 | S183: 0.06576
A184: 159 | B184: 4.5958 | C184: 137.87 | D184: 48.1262 | E184: 38.9595 | F184: -0.67 | G184: -72.66 | H184: 0.29682 | I184: 0.42211 | J184: 87.19% | K184: 0.36243 | L184: 0.26602 | M184: -0.00115 | N184: 0.04915 | O184: 0.00031 | P184: -0.01516 | Q184: 0.00084 | R184: -0.03398 | S184: 0.06431
A185: 160 | B185: 4.5975 | C185: 137.92 | D185: 48.1801 | E185: 38.9848 | F185: -0.67 | G185: -72.76 | H185: 0.29741 | I185: 0.42331 | J185: 86.98% | K185: 0.36207 | L185: 0.26582 | M185: -0.00115 | N185: 0.04800 | O185: 0.00031 | P185: -0.01486 | Q185: 0.00084 | R185: -0.03314 | S185: 0.06285
A186: 161 | B186: 4.5993 | C186: 137.98 | D186: 48.2340 | E186: 39.0101 | F186: -0.67 | G186: -72.86 | H186: 0.29800 | I186: 0.42451 | J186: 86.76% | K186: 0.36171 | L186: 0.26563 | M186: -0.00115 | N186: 0.04685 | O186: 0.00030 | P186: -0.01455 | Q186: 0.00084 | R186: -0.03230 | S186: 0.06140
A187: 162 | B187: 4.6011 | C187: 138.03 | D187: 48.2879 | E187: 39.0354 | F187: -0.68 | G187: -72.96 | H187: 0.29859 | I187: 0.42571 | J187: 86.55% | K187: 0.36136 | L187: 0.26544 | M187: -0.00114 | N187: 0.04571 | O187: 0.00030 | P187: -0.01425 | Q187: 0.00084 | R187: -0.03146 | S187: 0.05996
A188: 163 | B188: 4.6031 | C188: 138.09 | D188: 48.3418 | E188: 39.0607 | F188: -0.68 | G188: -73.06 | H188: 0.29918 | I188: 0.42690 | J188: 86.34% | K188: 0.36100 | L188: 0.26524 | M188: -0.00114 | N188: 0.04457 | O188: 0.00030 | P188: -0.01395 | Q188: 0.00084 | R188: -0.03062 | S188: 0.05851
A189: 164 | B189: 4.6052 | C189: 138.15 | D189: 48.3957 | E189: 39.0861 | F189: -0.68 | G189: -73.16 | H189: 0.29977 | I189: 0.42809 | J189: 86.12% | K189: 0.36064 | L189: 0.26505 | M189: -0.00114 | N189: 0.04343 | O189: 0.00030 | P189: -0.01365 | Q189: 0.00084 | R189: -0.02978 | S189: 0.05708
A190: 165 | B190: 4.6073 | C190: 138.22 | D190: 48.4496 | E190: 39.1114 | F190: -0.68 | G190: -73.27 | H190: 0.30035 | I190: 0.42929 | J190: 85.91% | K190: 0.36028 | L190: 0.26486 | M190: -0.00114 | N190: 0.04229 | O190: 0.00030 | P190: -0.01334 | Q190: 0.00083 | R190: -0.02895 | S190: 0.05564
A191: 166 | B191: 4.6096 | C191: 138.29 | D191: 48.5035 | E191: 39.1367 | F191: -0.68 | G191: -73.38 | H191: 0.30093 | I191: 0.43048 | J191: 85.70% | K191: 0.35993 | L191: 0.26467 | M191: -0.00113 | N191: 0.04116 | O191: 0.00030 | P191: -0.01304 | Q191: 0.00083 | R191: -0.02812 | S191: 0.05421
A192: 167 | B192: 4.6120 | C192: 138.36 | D192: 48.5574 | E192: 39.1621 | F192: -0.68 | G192: -73.49 | H192: 0.30151 | I192: 0.43167 | J192: 85.49% | K192: 0.35957 | L192: 0.26447 | M192: -0.00113 | N192: 0.04003 | O192: 0.00030 | P192: -0.01275 | Q192: 0.00083 | R192: -0.02728 | S192: 0.05278
A193: 168 | B193: 4.6145 | C193: 138.44 | D193: 48.6113 | E193: 39.1874 | F193: -0.68 | G193: -73.60 | H193: 0.30209 | I193: 0.43286 | J193: 85.27% | K193: 0.35921 | L193: 0.26428 | M193: -0.00113 | N193: 0.03890 | O193: 0.00030 | P193: -0.01245 | Q193: 0.00083 | R193: -0.02645 | S193: 0.05135
A194: 169 | B194: 4.6172 | C194: 138.52 | D194: 48.6652 | E194: 39.2128 | F194: -0.68 | G194: -73.72 | H194: 0.30267 | I194: 0.43404 | J194: 85.06% | K194: 0.35886 | L194: 0.26409 | M194: -0.00113 | N194: 0.03778 | O194: 0.00030 | P194: -0.01215 | Q194: 0.00083 | R194: -0.02563 | S194: 0.04993
A195: 170 | B195: 4.6201 | C195: 138.60 | D195: 48.7191 | E195: 39.2382 | F195: -0.68 | G195: -73.83 | H195: 0.30325 | I195: 0.43523 | J195: 84.85% | K195: 0.35850 | L195: 0.26389 | M195: -0.00112 | N195: 0.03665 | O195: 0.00030 | P195: -0.01185 | Q195: 0.00083 | R195: -0.02480 | S195: 0.04851
A196: 171 | B196: 4.6231 | C196: 138.69 | D196: 48.7730 | E196: 39.2636 | F196: -0.68 | G196: -73.96 | H196: 0.30382 | I196: 0.43641 | J196: 84.64% | K196: 0.35814 | L196: 0.26370 | M196: -0.00112 | N196: 0.03553 | O196: 0.00030 | P196: -0.01156 | Q196: 0.00083 | R196: -0.02397 | S196: 0.04709
A197: 172 | B197: 4.6263 | C197: 138.79 | D197: 48.8269 | E197: 39.2890 | F197: -0.68 | G197: -74.08 | H197: 0.30439 | I197: 0.43760 | J197: 84.43% | K197: 0.35779 | L197: 0.26351 | M197: -0.00112 | N197: 0.03441 | O197: 0.00029 | P197: -0.01126 | Q197: 0.00082 | R197: -0.02315 | S197: 0.04568
A198: 173 | B198: 4.6297 | C198: 138.89 | D198: 48.8808 | E198: 39.3144 | F198: -0.68 | G198: -74.21 | H198: 0.30497 | I198: 0.43878 | J198: 84.21% | K198: 0.35743 | L198: 0.26331 | M198: -0.00112 | N198: 0.03330 | O198: 0.00029 | P198: -0.01097 | Q198: 0.00082 | R198: -0.02233 | S198: 0.04427
A199: 174 | B199: 4.6334 | C199: 139.00 | D199: 48.9347 | E199: 39.3398 | F199: -0.68 | G199: -74.35 | H199: 0.30554 | I199: 0.43996 | J199: 84.00% | K199: 0.35708 | L199: 0.26312 | M199: -0.00111 | N199: 0.03218 | O199: 0.00029 | P199: -0.01068 | Q199: 0.00082 | R199: -0.02151 | S199: 0.04286
A200: 175 | B200: 4.6373 | C200: 139.12 | D200: 48.9886 | E200: 39.3652 | F200: -0.68 | G200: -74.49 | H200: 0.30610 | I200: 0.44114 | J200: 83.79% | K200: 0.35672 | L200: 0.26293 | M200: -0.00111 | N200: 0.03107 | O200: 0.00029 | P200: -0.01038 | Q200: 0.00082 | R200: -0.02069 | S200: 0.04145
A201: 176 | B201: 4.6414 | C201: 139.24 | D201: 49.0425 | E201: 39.3906 | F201: -0.68 | G201: -74.63 | H201: 0.30667 | I201: 0.44232 | J201: 83.58% | K201: 0.35637 | L201: 0.26274 | M201: -0.00111 | N201: 0.02996 | O201: 0.00029 | P201: -0.01009 | Q201: 0.00082 | R201: -0.01987 | S201: 0.04005
... 8 more rows

Sheet Ka
B1: Ø’cs,ps | C1: ='CSSM sand'!C9 -> 49.51 | D1: °
B2: H | C2: 3 | D2: m
B3: ꜪH,cs,ps | C3: =IF(INDEX('CSSM sand'!P27:P100000,COUNTA('CSSM sand'!P27:P100000))<0,INDEX('CSSM sand'!P27:P100000,COUNTA('CSSM sand'!P27:P100000)),INDEX('CSSM sand'!N27:N100000,COUNTA('CSSM sand'!N27:N100000))) -> -0.00779
B4: Δx/Hrotation | C4: =D10/(C2*1000) -> 1.90%
B5: Δx/Htranslation | C5: =D22/(C2*1000) -> 0.93%
B8: depth avg. | C8: y (m) | D8: wall δ (mm) | E8: wall δavg. (mm) | F8: x (m) | G8: ꜪH,wall | H8: CS ?
B9: Outward rotation about the base:
B10: 0.00 | D10: 57.00
B11: =B10+($C$2/10) -> 0.30 | C11: =$C$2-AVERAGE(B10:B11) -> 2.85 | D11: =D10-($D$10/COUNTA($B$11:$B$20)) -> 51.30 | E11: =AVERAGE(D10:D11) -> 54.15 | F11: =(LN(C11+1))/TAN($C$1*PI()/180) -> 1.15 | G11: =-E11/(F11*1000) -> -0.04704 | H11: =IF(OR(G11<$C$3,G11=$C$3),"yes","no") -> yes
B12: =B11+($C$2/10) -> 0.60 | C12: =$C$2-AVERAGE(B11:B12) -> 2.55 | D12: =D11-($D$10/COUNTA($B$11:$B$20)) -> 45.60 | E12: =AVERAGE(D11:D12) -> 48.45 | F12: 1.08 | G12: =-E12/(F12*1000) -> -0.04479 | H12: =IF(OR(G12<$C$3,G12=$C$3),"yes","no") -> yes
B13: 0.90 | C13: 2.25 | D13: 39.90 | E13: 42.75 | F13: 1.01 | G13: -0.04248 | H13: yes
B14: 1.20 | C14: 1.95 | D14: 34.20 | E14: 37.05 | F14: 0.92 | G14: -0.04011 | H14: yes
B15: 1.50 | C15: 1.65 | D15: 28.50 | E15: 31.35 | F15: 0.83 | G15: -0.03767 | H15: yes
B16: 1.80 | C16: 1.35 | D16: 22.80 | E16: 25.65 | F16: 0.73 | G16: -0.03516 | H16: yes
B17: 2.10 | C17: 1.05 | D17: 17.10 | E17: 19.95 | F17: 0.61 | G17: -0.03255 | H17: yes
B18: 2.40 | C18: 0.75 | D18: 11.40 | E18: 14.25 | F18: 0.48 | G18: -0.02982 | H18: yes
B19: 2.70 | C19: 0.45 | D19: 5.70 | E19: =AVERAGE(D18:D19) -> 8.55 | F19: 0.32 | G19: -0.02695 | H19: yes
B20: =B19+($C$2/10) -> 3.00 | C20: 0.15 | D20: -0.00 | E20: =AVERAGE(D19:D20) -> 2.85 | F20: 0.12 | G20: -0.02388 | H20: yes
B21: Outward translation:
B22: 0.00 | D22: 28.00
B23: =B22+($C$2/10) -> 0.30 | C23: =$C$2-AVERAGE(B22:B23) -> 2.85 | D23: =D22 -> 28.00 | E23: =$D$22 -> 28.00 | F23: =(LN(C23+1))/TAN($C$1*PI()/180) -> 1.15 | G23: =-E23/(F23*1000) -> -0.02432 | H23: =IF(OR(G23<$C$3,G23=$C$3),"yes","no") -> yes
B24: =B23+($C$2/10) -> 0.60 | C24: =$C$2-AVERAGE(B23:B24) -> 2.55 | D24: =D23 -> 28.00 | E24: =$D$22 -> 28.00 | F24: =(LN(C24+1))/TAN($C$1*PI()/180) -> 1.08 | G24: -0.02588 | H24: yes
B25: 0.90 | C25: 2.25 | D25: 28.00 | E25: 28.00 | F25: 1.01 | G25: -0.02782 | H25: yes
B26: 1.20 | C26: 1.95 | D26: 28.00 | E26: 28.00 | F26: 0.92 | G26: -0.03031 | H26: yes
B27: 1.50 | C27: 1.65 | D27: 28.00 | E27: 28.00 | F27: 0.83 | G27: -0.03365 | H27: yes
B28: 1.80 | C28: 1.35 | D28: 28.00 | E28: 28.00 | F28: 0.73 | G28: -0.03838 | H28: yes
B29: 2.10 | C29: 1.05 | D29: 28.00 | E29: 28.00 | F29: 0.61 | G29: -0.04568 | H29: yes
B30: 2.40 | C30: 0.75 | D30: 28.00 | E30: 28.00 | F30: 0.48 | G30: -0.05860 | H30: yes
B31: 2.70 | C31: 0.45 | D31: 28.00 | E31: 28.00 | F31: 0.32 | G31: -0.08825 | H31: yes
B32: 3.00 | C32: 0.15 | D32: 28.00 | E32: 28.00 | F32: 0.12 | G32: -0.23462 | H32: yes

Sheet Kp
B1: Ø’cs,ps | C1: ='CSSM sand'!C9 -> 49.51 | D1: °
B2: H | C2: 3 | D2: m
B3: ꜪH,cs,ps | C3: =ABS(IF(INDEX('CSSM sand'!P27:P100000,COUNTA('CSSM sand'!P27:P100000))<0,INDEX('CSSM sand'!P27:P100000,COUNTA('CSSM sand'!P27:P100000)),INDEX('CSSM sand'!N27:N100000,COUNTA('CSSM sand'!N27:N100000)))) -> 0.00779
B4: Δx/Hrotation | C4: =D10/(C2*1000) -> 3.87%
B5: Δx/Htranslation | C5: =D22/(C2*1000) -> 2.17%
B8: depth avg. | C8: y (m) | D8: wall δ (mm) | E8: wall δavg. (mm) | F8: x (m) | G8: ꜪH,wall | H8: CS ?
B9: Inward rotation about the base:
B10: 0.00 | D10: 116.00
B11: =B10+($C$2/10) -> 0.30 | C11: =$C$2-AVERAGE(B10:B11) -> 2.85 | D11: =D10-($D$10/COUNTA($B$11:$B$20)) -> 104.40 | E11: =AVERAGE(D10:D11) -> 110.20 | F11: =(LN(C11+1)*($C$2+1))/TAN((90-$C$1)*PI()/180) -> 6.32 | G11: =E11/(F11*1000) -> 0.01745 | H11: =IF(OR(G11>$C$3,G11=$C$3),"yes","no") -> yes
B12: =B11+($C$2/10) -> 0.60 | C12: =$C$2-AVERAGE(B11:B12) -> 2.55 | D12: =D11-($D$10/COUNTA($B$11:$B$20)) -> 92.80 | E12: =AVERAGE(D11:D12) -> 98.60 | F12: =(LN(C12+1)*($C$2+1))/TAN((90-$C$1)*PI()/180) -> 5.93 | G12: =E12/(F12*1000) -> 0.01661 | H12: =IF(OR(G12>$C$3,G12=$C$3),"yes","no") -> yes
B13: 0.90 | C13: 2.25 | D13: 81.20 | E13: 87.00 | F13: 5.52 | G13: 0.01576 | H13: yes
B14: 1.20 | C14: 1.95 | D14: 69.60 | E14: 75.40 | F14: 5.07 | G14: 0.01488 | H14: yes
B15: 1.50 | C15: 1.65 | D15: 58.00 | E15: 63.80 | F15: 4.57 | G15: 0.01397 | H15: yes
B16: 1.80 | C16: 1.35 | D16: 46.40 | E16: 52.20 | F16: 4.00 | G16: 0.01304 | H16: yes
B17: 2.10 | C17: 1.05 | D17: 34.80 | E17: 40.60 | F17: 3.36 | G17: 0.01207 | H17: yes
B18: 2.40 | C18: 0.75 | D18: 23.20 | E18: 29.00 | F18: 2.62 | G18: 0.01106 | H18: yes
B19: 2.70 | C19: 0.45 | D19: 11.60 | E19: 17.40 | F19: 1.74 | G19: 0.01000 | H19: yes
B20: 3.00 | C20: 0.15 | D20: 0.00 | E20: 5.80 | F20: 0.65 | G20: 0.00886 | H20: yes
B21: Inward translation:
B22: 0.00 | D22: 65.00
B23: =B22+($C$2/10) -> 0.30 | C23: =$C$2-AVERAGE(B22:B23) -> 2.85 | D23: =D22 -> 65.00 | E23: =$D$22 -> 65.00 | F23: =(LN(C23+1)*($C$2+1))/TAN((90-$C$1)*PI()/180) -> 6.32 | G23: =E23/(F23*1000) -> 0.01029 | H23: =IF(OR(G23>$C$3,G23=$C$3),"yes","no") -> yes
B24: =B23+($C$2/10) -> 0.60 | C24: =$C$2-AVERAGE(B23:B24) -> 2.55 | D24: =D23 -> 65.00 | E24: =$D$22 -> 65.00 | F24: =(LN(C24+1)*($C$2+1))/TAN((90-$C$1)*PI()/180) -> 5.93 | G24: =E24/(F24*1000) -> 0.01095 | H24: =IF(OR(G24>$C$3,G24=$C$3),"yes","no") -> yes
B25: 0.90 | C25: 2.25 | D25: 65.00 | E25: 65.00 | F25: 5.52 | G25: 0.01177 | H25: yes
B26: 1.20 | C26: 1.95 | D26: 65.00 | E26: 65.00 | F26: 5.07 | G26: 0.01283 | H26: yes
B27: 1.50 | C27: 1.65 | D27: 65.00 | E27: 65.00 | F27: 4.57 | G27: 0.01424 | H27: yes
B28: 1.80 | C28: 1.35 | D28: 65.00 | E28: 65.00 | F28: 4.00 | G28: 0.01624 | H28: yes
B29: 2.10 | C29: 1.05 | D29: 65.00 | E29: 65.00 | F29: 3.36 | G29: 0.01933 | H29: yes
B30: 2.40 | C30: 0.75 | D30: 65.00 | E30: 65.00 | F30: 2.62 | G30: 0.02479 | H30: yes
B31: 2.70 | C31: 0.45 | D31: 65.00 | E31: 65.00 | F31: 1.74 | G31: 0.03734 | H31: yes
B32: 3.00 | C32: 0.15 | D32: 65.00 | E32: 65.00 | F32: 0.65 | G32: 0.09928 | H32: yes
